[Event "Titled Tuesday Blitz January 10 Early 2023"]
[White "Shubenkova, Veronika"]
[Black "Gareyev, Timur"]
[WhiteFideId "44124040"]
[BlackFideId "14200937"]
[WhiteElo "1960"]
[BlackElo "2617"]
[Result "0-1"]
[Round "01"]
[TimeControl "180+2"]
[Date "2023.01.10"]
[WhiteClock "0:01:04"]
[BlackClock "0:00:19"]

1. e4 {[%clk 0:02:59]}  e5 {[%clk 0:02:31]} 2. Nf3 {[%clk 0:02:57]}  Nc6 {[%clk 0:02:29]} 3. Bb5 {[%clk 0:02:57]}  a6 {[%clk 0:02:28]} 4. Bxc6 {[%clk 0:02:57]}  dxc6 {[%clk 0:02:26]} 5. O-O {[%clk 0:02:58]}  Ne7 {[%clk 0:02:17]} 6. Nc3 {[%clk 0:02:51]}  Ng6 {[%clk 0:02:13]} 7. d4 {[%clk 0:02:50]}  exd4 {[%clk 0:02:12]} 8. Nxd4 {[%clk 0:02:49]}  c5 {[%clk 0:02:06]} 9. Nde2 {[%clk 0:02:45]}  Bd6 {[%clk 0:01:58]} 10. f4 {[%clk 0:02:40]}  O-O {[%clk 0:01:55]} 11. e5 {[%clk 0:02:40]}  Be7 {[%clk 0:01:53]} 12. Qxd8 {[%clk 0:02:39]}  Rxd8 {[%clk 0:01:52]} 13. Be3 {[%clk 0:02:39]}  Nh4 {[%clk 0:01:49]} 14. Ne4 {[%clk 0:02:34]}  b6 {[%clk 0:01:43]} 15. N2g3 {[%clk 0:02:32]}  Nf5 {[%clk 0:01:38]} 16. Kf2 {[%clk 0:02:19]}  Nd4 {[%clk 0:01:24]} 17. Bxd4 {[%clk 0:02:13]}  cxd4 {[%clk 0:01:23]} 18. Rad1 {[%clk 0:02:12]}  c5 {[%clk 0:01:22]} 19. f5 {[%clk 0:02:07]}  Rd5 {[%clk 0:01:15]} 20. f6 {[%clk 0:02:07]}  Bd8 {[%clk 0:01:03]} 21. fxg7 {[%clk 0:01:58]}  Rxe5 {[%clk 0:01:02]} 22. Rde1 {[%clk 0:01:55]}  Kxg7 {[%clk 0:00:51]} 23. Kg1 {[%clk 0:01:54]}  Be6 {[%clk 0:00:46]} 24. Nd6 {[%clk 0:01:52]}  Rxe1 {[%clk 0:00:45]} 25. Rxe1 {[%clk 0:01:52]}  Bc7 {[%clk 0:00:44]} 26. Ngf5+ {[%clk 0:01:36]}  Kf6 {[%clk 0:00:39]} 27. g4 {[%clk 0:01:36]}  h5 {[%clk 0:00:38]} 28. Ne4+ {[%clk 0:01:34]}  Kg6 {[%clk 0:00:36]} 29. Nh4+ {[%clk 0:01:33]}  Kg7 {[%clk 0:00:36]} 30. g5 {[%clk 0:01:32]}  Rd8 {[%clk 0:00:32]} 31. g6 {[%clk 0:01:24]}  Bf4 {[%clk 0:00:29]} 32. gxf7 {[%clk 0:01:22]}  Be3+ {[%clk 0:00:29]} 33. Kf1 {[%clk 0:01:20]}  Bc4+ {[%clk 0:00:29]} 34. Kg2 {[%clk 0:01:20]}  Bd5 {[%clk 0:00:29]} 35. Kf3 {[%clk 0:01:18]}  Kxf7 {[%clk 0:00:29]} 36. Nf5 {[%clk 0:01:17]}  Bg5 {[%clk 0:00:25]} 37. Rg1 {[%clk 0:01:13]}  Bf6 {[%clk 0:00:22]} 38. Kf4 {[%clk 0:01:11]}  Bxe4 {[%clk 0:00:17]} 39. Kxe4 {[%clk 0:01:11]}  Re8+ {[%clk 0:00:18]} 40. Kf4 {[%clk 0:01:10]}  Re2 {[%clk 0:00:18]} 41. Nd6+ {[%clk 0:01:09]}  Ke6 {[%clk 0:00:18]} 42. Ne4 {[%clk 0:01:08]}  Be5+ {[%clk 0:00:19]} 43. Kf3 {[%clk 0:01:08]}  Re3+ {[%clk 0:00:19]} 44. Kf2 {[%clk 0:01:04]}  Rxe4 {[%clk 0:00:20]} 45. Rg6+ {[%clk 0:01:04]}  Bf6 {[%clk 0:00:19]} 0-1


[Site "https://www.chess.com"]

[Event "Titled Tuesday Blitz January 10 Early 2023"]
[White "Tan, Zhongyi"]
[Black "Szyszylo, Rafal"]
[WhiteFideId "8603642"]
[BlackFideId "1109626"]
[WhiteElo "2517"]
[BlackElo "2091"]
[Result "1/2-1/2"]
[Round "01"]
[TimeControl "180+2"]
[Date "2023.01.10"]
[WhiteClock "0:00:04"]
[BlackClock "0:00:04"]

1. e4 {[%clk 0:02:57]}  d6 {[%clk 0:03:00]} 2. d4 {[%clk 0:02:56]}  g6 {[%clk 0:03:01]} 3. Nc3 {[%clk 0:02:57]}  Nf6 {[%clk 0:02:59]} 4. Be3 {[%clk 0:02:55]}  c6 {[%clk 0:02:58]} 5. f3 {[%clk 0:02:53]}  b5 {[%clk 0:02:57]} 6. Qd2 {[%clk 0:02:53]}  Nbd7 {[%clk 0:02:58]} 7. O-O-O {[%clk 0:02:49]}  Nb6 {[%clk 0:02:50]} 8. h4 {[%clk 0:02:47]}  Nc4 {[%clk 0:02:47]} 9. Bxc4 {[%clk 0:02:46]}  bxc4 {[%clk 0:02:48]} 10. g4 {[%clk 0:02:28]}  Rb8 {[%clk 0:02:43]} 11. g5 {[%clk 0:02:25]}  Nh5 {[%clk 0:02:38]} 12. Nge2 {[%clk 0:02:24]}  Qb6 {[%clk 0:02:38]} 13. b3 {[%clk 0:02:20]}  Ba6 {[%clk 0:02:37]} 14. f4 {[%clk 0:02:06]}  cxb3 {[%clk 0:02:34]} 15. axb3 {[%clk 0:02:05]}  Qb4 {[%clk 0:02:23]} 16. Kb2 {[%clk 0:02:04]}  Bg7 {[%clk 0:02:18]} 17. Ra1 {[%clk 0:02:03]}  Bxe2 {[%clk 0:02:17]} 18. Nxe2 {[%clk 0:02:00]}  Qxd2 {[%clk 0:02:04]} 19. Bxd2 {[%clk 0:02:01]}  c5 {[%clk 0:02:04]} 20. c3 {[%clk 0:01:51]}  cxd4 {[%clk 0:02:03]} 21. cxd4 {[%clk 0:01:52]}  Rb7 {[%clk 0:02:01]} 22. e5 {[%clk 0:01:45]}  Kd7 {[%clk 0:01:55]} 23. Ra3 {[%clk 0:01:43]}  Rhb8 {[%clk 0:01:53]} 24. Rha1 {[%clk 0:01:43]}  Ke6 {[%clk 0:01:53]} 25. Nc1 {[%clk 0:01:37]}  dxe5 {[%clk 0:01:50]} 26. dxe5 {[%clk 0:01:38]}  f6 {[%clk 0:01:44]} 27. Ra6+ {[%clk 0:01:29]}  Kf5 {[%clk 0:01:36]} 28. exf6 {[%clk 0:01:28]}  exf6 {[%clk 0:01:35]} 29. R1a5+ {[%clk 0:01:27]}  Kg4 {[%clk 0:01:35]} 30. Bc3 {[%clk 0:01:20]}  fxg5 {[%clk 0:00:51]} 31. Bxg7 {[%clk 0:01:12]}  Nxg7 {[%clk 0:00:51]} 32. hxg5 {[%clk 0:01:01]}  Kxf4 {[%clk 0:00:41]} 33. Rxa7 {[%clk 0:01:00]}  Nf5 {[%clk 0:00:39]} 34. Rxb7 {[%clk 0:00:50]}  Rxb7 {[%clk 0:00:40]} 35. Nd3+ {[%clk 0:00:48]}  Kxg5 {[%clk 0:00:41]} 36. b4 {[%clk 0:00:48]}  h5 {[%clk 0:00:39]} 37. Ra8 {[%clk 0:00:45]}  h4 {[%clk 0:00:37]} 38. Rh8 {[%clk 0:00:45]}  Kg4 {[%clk 0:00:37]} 39. Ne5+ {[%clk 0:00:40]}  Kg3 {[%clk 0:00:37]} 40. Nxg6 {[%clk 0:00:39]}  Rxb4+ {[%clk 0:00:37]} 41. Kc3 {[%clk 0:00:39]}  Rg4 {[%clk 0:00:34]} 42. Nxh4 {[%clk 0:00:38]}  Nxh4 {[%clk 0:00:33]} 43. Kd3 {[%clk 0:00:37]}  Nf5 {[%clk 0:00:32]} 44. Re8 {[%clk 0:00:34]}  Rd4+ {[%clk 0:00:14]} 45. Kc3 {[%clk 0:00:33]}  Rd6 {[%clk 0:00:14]} 46. Rf8 {[%clk 0:00:29]}  Kf4 {[%clk 0:00:15]} 47. Re8 {[%clk 0:00:29]}  Rc6+ {[%clk 0:00:15]} 48. Kb4 {[%clk 0:00:29]}  Rc2 {[%clk 0:00:15]} 49. Kb3 {[%clk 0:00:28]}  Rc7 {[%clk 0:00:15]} 50. Kb4 {[%clk 0:00:28]}  Nd6 {[%clk 0:00:15]} 51. Re1 {[%clk 0:00:26]}  Ne4 {[%clk 0:00:15]} 52. Rd1 {[%clk 0:00:19]}  Ke5 {[%clk 0:00:14]} 53. Rd8 {[%clk 0:00:19]}  Rb7+ {[%clk 0:00:13]} 54. Kc4 {[%clk 0:00:19]}  Nd6+ {[%clk 0:00:13]} 55. Kd3 {[%clk 0:00:18]}  Rb3+ {[%clk 0:00:12]} 56. Kc2 {[%clk 0:00:18]}  Rf3 {[%clk 0:00:12]} 57. Rd7 {[%clk 0:00:17]}  Kd5 {[%clk 0:00:12]} 58. Kd2 {[%clk 0:00:15]}  Kc6 {[%clk 0:00:11]} 59. Rd8 {[%clk 0:00:15]}  Ne4+ {[%clk 0:00:09]} 60. Ke2 {[%clk 0:00:15]}  Rh3 {[%clk 0:00:08]} 61. Rd4 {[%clk 0:00:14]}  Nd6 {[%clk 0:00:07]} 62. Kf2 {[%clk 0:00:13]}  Kc5 {[%clk 0:00:06]} 63. Ra4 {[%clk 0:00:13]}  Nc4 {[%clk 0:00:06]} 64. Kg2 {[%clk 0:00:12]}  Rh4 {[%clk 0:00:06]} 65. Kg3 {[%clk 0:00:12]}  Rd4 {[%clk 0:00:06]} 66. Ra8 {[%clk 0:00:12]}  Ne5 {[%clk 0:00:05]} 67. Rc8+ {[%clk 0:00:11]}  Kb4 {[%clk 0:00:05]} 68. Re8 {[%clk 0:00:11]}  Nc6 {[%clk 0:00:05]} 69. Kf3 {[%clk 0:00:10]}  Kc5 {[%clk 0:00:05]} 70. Rc8 {[%clk 0:00:09]}  Rd7 {[%clk 0:00:05]} 71. Re8 {[%clk 0:00:09]}  Rf7+ {[%clk 0:00:05]} 72. Ke4 {[%clk 0:00:08]}  Rf1 {[%clk 0:00:05]} 73. Rh8 {[%clk 0:00:08]}  Re1+ {[%clk 0:00:05]} 74. Kd3 {[%clk 0:00:08]}  Kd5 {[%clk 0:00:05]} 75. Kd2 {[%clk 0:00:08]}  Re7 {[%clk 0:00:04]} 76. Kc3 {[%clk 0:00:08]}  Ne5 {[%clk 0:00:05]} 77. Rd8+ {[%clk 0:00:07]}  Ke4 {[%clk 0:00:05]} 78. Kd2 {[%clk 0:00:07]}  Rc7 {[%clk 0:00:05]} 79. Rh8 {[%clk 0:00:06]}  Rc5 {[%clk 0:00:05]} 80. Rh4+ {[%clk 0:00:05]}  Kd5 {[%clk 0:00:05]} 81. Rh8 {[%clk 0:00:05]}  Ke4 {[%clk 0:00:04]} 82. Rh4+ {[%clk 0:00:05]}  Kf3 {[%clk 0:00:04]} 83. Rh8 {[%clk 0:00:06]}  Rd5+ {[%clk 0:00:04]} 84. Kc3 {[%clk 0:00:06]}  Rd3+ {[%clk 0:00:04]} 85. Kb4 {[%clk 0:00:06]}  Ke3 {[%clk 0:00:04]} 86. Kc5 {[%clk 0:00:06]}  Rc3+ {[%clk 0:00:03]} 87. Kb4 {[%clk 0:00:07]}  Rc4+ {[%clk 0:00:03]} 88. Kb5 {[%clk 0:00:07]}  Rc1 {[%clk 0:00:03]} 89. Rd8 {[%clk 0:00:06]}  Ke4 {[%clk 0:00:03]} 90. Kb6 {[%clk 0:00:05]}  Rc2 {[%clk 0:00:03]} 91. Rd1 {[%clk 0:00:05]}  Rc4 {[%clk 0:00:04]} 92. Kb5 {[%clk 0:00:04]}  Rc2 {[%clk 0:00:04]} 1/2-1/2


[Site "https://www.chess.com"]

[Event "Titled Tuesday Blitz January 10 Early 2023"]
[White "Bartel, Mateusz"]
[Black "Bozorov, Makhsum"]
[WhiteFideId "1112635"]
[BlackFideId "14201330"]
[WhiteElo "2609"]
[BlackElo "2145"]
[Result "1-0"]
[Round "01"]
[TimeControl "180+2"]
[Date "2023.01.10"]
[WhiteClock "0:00:30"]
[BlackClock "0:00:09"]

1. Nf3 {[%clk 0:02:58]}  Nf6 {[%clk 0:02:58]} 2. c4 {[%clk 0:02:57]}  g6 {[%clk 0:02:58]} 3. Nc3 {[%clk 0:02:56]}  Bg7 {[%clk 0:02:59]} 4. e4 {[%clk 0:02:56]}  d6 {[%clk 0:02:58]} 5. d4 {[%clk 0:02:56]}  O-O {[%clk 0:02:59]} 6. Bd3 {[%clk 0:02:54]}  e5 {[%clk 0:02:48]} 7. d5 {[%clk 0:02:44]}  Bg4 {[%clk 0:02:05]} 8. Be3 {[%clk 0:02:37]}  Nfd7 {[%clk 0:02:02]} 9. Qc2 {[%clk 0:02:25]}  Bxf3 {[%clk 0:01:51]} 10. gxf3 {[%clk 0:02:26]}  Qh4 {[%clk 0:01:45]} 11. O-O-O {[%clk 0:02:24]}  Bh6 {[%clk 0:01:43]} 12. Kb1 {[%clk 0:02:25]}  a5 {[%clk 0:01:40]} 13. Rdg1 {[%clk 0:02:11]}  Bxe3 {[%clk 0:01:38]} 14. fxe3 {[%clk 0:02:12]}  Na6 {[%clk 0:01:36]} 15. Rg4 {[%clk 0:02:11]}  Qh6 {[%clk 0:01:31]} 16. Qf2 {[%clk 0:02:11]}  Ndc5 {[%clk 0:01:28]} 17. Bc2 {[%clk 0:02:10]}  Nb4 {[%clk 0:01:29]} 18. Rh4 {[%clk 0:02:10]}  Qg7 {[%clk 0:01:27]} 19. Rg1 {[%clk 0:02:10]}  Qf6 {[%clk 0:01:21]} 20. Qg3 {[%clk 0:02:02]}  Nxc2 {[%clk 0:01:06]} 21. Kxc2 {[%clk 0:02:00]}  Qe7 {[%clk 0:01:02]} 22. Qh3 {[%clk 0:01:56]}  f5 {[%clk 0:01:02]} 23. exf5 {[%clk 0:01:53]}  Rxf5 {[%clk 0:00:59]} 24. Rxg6+ {[%clk 0:01:07]}  hxg6 {[%clk 0:00:49]} 25. Rh8+ {[%clk 0:01:07]}  Kf7 {[%clk 0:00:44]} 26. Rh7+ {[%clk 0:01:05]}  Ke8 {[%clk 0:00:39]} 27. Rxe7+ {[%clk 0:01:00]}  Kxe7 {[%clk 0:00:40]} 28. Qh4+ {[%clk 0:00:58]}  Rf6 {[%clk 0:00:32]} 29. Nb5 {[%clk 0:00:53]}  Rc8 {[%clk 0:00:18]} 30. Kd2 {[%clk 0:00:41]}  Nd7 {[%clk 0:00:16]} 31. Ke2 {[%clk 0:00:40]}  c6 {[%clk 0:00:15]} 32. Qh7+ {[%clk 0:00:37]}  Rf7 {[%clk 0:00:14]} 33. Qxf7+ {[%clk 0:00:37]}  Kxf7 {[%clk 0:00:14]} 34. Nxd6+ {[%clk 0:00:38]}  Kf6 {[%clk 0:00:13]} 35. Nxc8 {[%clk 0:00:38]}  cxd5 {[%clk 0:00:14]} 36. cxd5 {[%clk 0:00:39]}  e4 {[%clk 0:00:12]} 37. f4 {[%clk 0:00:29]}  g5 {[%clk 0:00:11]} 38. Nd6 {[%clk 0:00:29]}  gxf4 {[%clk 0:00:10]} 39. exf4 {[%clk 0:00:29]}  Nc5 {[%clk 0:00:10]} 40. Ke3 {[%clk 0:00:30]}  a4 {[%clk 0:00:10]} 41. Nxe4+ {[%clk 0:00:29]}  Nxe4 {[%clk 0:00:09]} 42. Kxe4 {[%clk 0:00:30]} 1-0


[Site "https://www.chess.com"]

[Event "Titled Tuesday Blitz January 10 Early 2023"]
[White "Harshavardhan G B"]
[Black "Donskov, Anatoly"]
[WhiteFideId "25059009"]
[BlackFideId "24143413"]
[WhiteElo "2408"]
[BlackElo "2279"]
[Result "1-0"]
[Round "01"]
[TimeControl "180+2"]
[Date "2023.01.10"]
[WhiteClock "0:00:23"]
[BlackClock "0:00:30"]

1. Nf3 {[%clk 0:02:58]}  d5 {[%clk 0:02:27]} 2. g3 {[%clk 0:02:38]}  Nf6 {[%clk 0:02:25]} 3. Bg2 {[%clk 0:02:36]}  Bf5 {[%clk 0:02:25]} 4. O-O {[%clk 0:02:35]}  e6 {[%clk 0:02:25]} 5. d3 {[%clk 0:02:33]}  h6 {[%clk 0:02:24]} 6. Nbd2 {[%clk 0:02:31]}  c6 {[%clk 0:02:24]} 7. Qe1 {[%clk 0:02:30]}  Be7 {[%clk 0:02:24]} 8. e4 {[%clk 0:02:29]}  Bg6 {[%clk 0:02:24]} 9. b3 {[%clk 0:02:24]}  O-O {[%clk 0:02:23]} 10. Bb2 {[%clk 0:02:24]}  a5 {[%clk 0:02:23]} 11. a4 {[%clk 0:02:23]}  Na6 {[%clk 0:02:22]} 12. Ne5 {[%clk 0:02:21]}  Bh7 {[%clk 0:02:21]} 13. Qe2 {[%clk 0:02:20]}  Nb4 {[%clk 0:02:14]} 14. Rac1 {[%clk 0:02:15]}  Na2 {[%clk 0:02:07]} 15. Rce1 {[%clk 0:02:11]}  Nb4 {[%clk 0:02:08]} 16. Nb1 {[%clk 0:01:52]}  dxe4 {[%clk 0:01:53]} 17. dxe4 {[%clk 0:01:52]}  Qb6 {[%clk 0:01:50]} 18. Kh1 {[%clk 0:01:49]}  Rfd8 {[%clk 0:01:49]} 19. f4 {[%clk 0:01:45]}  Qc5 {[%clk 0:01:42]} 20. Na3 {[%clk 0:01:33]}  Nd7 {[%clk 0:01:03]} 21. Nac4 {[%clk 0:00:44]}  b5 {[%clk 0:00:54]} 22. Nxd7 {[%clk 0:00:42]}  bxc4 {[%clk 0:00:52]} 23. Nxc5 {[%clk 0:00:42]}  Bxc5 {[%clk 0:00:50]} 24. Qxc4 {[%clk 0:00:41]}  Bf8 {[%clk 0:00:48]} 25. Rd1 {[%clk 0:00:40]}  Rac8 {[%clk 0:00:42]} 26. c3 {[%clk 0:00:39]}  Nc2 {[%clk 0:00:42]} 27. Qe2 {[%clk 0:00:36]}  Na3 {[%clk 0:00:40]} 28. f5 {[%clk 0:00:32]}  Rxd1 {[%clk 0:00:38]} 29. Qxd1 {[%clk 0:00:31]}  Rb8 {[%clk 0:00:33]} 30. fxe6 {[%clk 0:00:26]}  fxe6 {[%clk 0:00:34]} 31. Rxf8+ {[%clk 0:00:26]}  Rxf8 {[%clk 0:00:31]} 32. Bxa3 {[%clk 0:00:27]}  Rf2 {[%clk 0:00:30]} 33. Qd8+ {[%clk 0:00:24]}  Kf7 {[%clk 0:00:30]} 34. Qf8+ {[%clk 0:00:22]}  Kg6 {[%clk 0:00:30]} 35. Qxf2 {[%clk 0:00:23]} 1-0


[Site "https://www.chess.com"]

[Event "Titled Tuesday Blitz January 10 Early 2023"]
[White "Dudzinski, Pawel"]
[Black "Nigmatov, Ortik"]
[WhiteFideId "1117890"]
[BlackFideId "14202131"]
[WhiteElo "2186"]
[BlackElo "2438"]
[Result "0-1"]
[Round "01"]
[TimeControl "180+2"]
[Date "2023.01.10"]
[WhiteClock "0:00:33"]
[BlackClock "0:00:19"]

1. e4 {[%clk 0:02:59]}  c5 {[%clk 0:02:57]} 2. c4 {[%clk 0:02:58]}  d6 {[%clk 0:02:56]} 3. Nc3 {[%clk 0:02:58]}  Nc6 {[%clk 0:02:55]} 4. g3 {[%clk 0:02:59]}  g6 {[%clk 0:02:55]} 5. Bg2 {[%clk 0:02:59]}  Bg7 {[%clk 0:02:56]} 6. Nge2 {[%clk 0:03:00]}  e6 {[%clk 0:02:55]} 7. Rb1 {[%clk 0:03:01]}  Nge7 {[%clk 0:02:55]} 8. a3 {[%clk 0:03:01]}  a5 {[%clk 0:02:53]} 9. d3 {[%clk 0:02:59]}  O-O {[%clk 0:02:53]} 10. O-O {[%clk 0:02:59]}  Nd4 {[%clk 0:02:46]} 11. Nxd4 {[%clk 0:02:58]}  cxd4 {[%clk 0:02:45]} 12. Ne2 {[%clk 0:02:57]}  a4 {[%clk 0:02:41]} 13. b4 {[%clk 0:02:40]}  axb3 {[%clk 0:02:40]} 14. Qxb3 {[%clk 0:02:41]}  Nc6 {[%clk 0:02:39]} 15. Bb2 {[%clk 0:02:39]}  e5 {[%clk 0:02:19]} 16. f4 {[%clk 0:02:38]}  Bg4 {[%clk 0:02:15]} 17. Bf3 {[%clk 0:02:37]}  Bxf3 {[%clk 0:02:13]} 18. Rxf3 {[%clk 0:02:38]}  Na5 {[%clk 0:02:08]} 19. Qb5 {[%clk 0:02:29]}  f5 {[%clk 0:02:04]} 20. fxe5 {[%clk 0:02:13]}  dxe5 {[%clk 0:01:59]} 21. exf5 {[%clk 0:01:50]}  gxf5 {[%clk 0:01:56]} 22. Rbf1 {[%clk 0:01:50]}  Qc8 {[%clk 0:01:29]} 23. Qd5+ {[%clk 0:01:20]}  Kh8 {[%clk 0:01:25]} 24. g4 {[%clk 0:01:21]}  f4 {[%clk 0:01:13]} 25. h3 {[%clk 0:01:20]}  Ra6 {[%clk 0:01:09]} 26. Nxf4 {[%clk 0:00:52]}  exf4 {[%clk 0:01:07]} 27. Rxf4 {[%clk 0:00:52]}  Rxf4 {[%clk 0:01:02]} 28. Rxf4 {[%clk 0:00:53]}  Nb3 {[%clk 0:00:57]} 29. Qb5 {[%clk 0:00:46]}  Nc5 {[%clk 0:00:40]} 30. Rxd4 {[%clk 0:00:46]}  Re6 {[%clk 0:00:31]} 31. Qxc5 {[%clk 0:00:42]}  Qxc5 {[%clk 0:00:23]} 32. Kg2 {[%clk 0:00:33]}  Bxd4 {[%clk 0:00:19]} 0-1


[Site "https://www.chess.com"]

[Event "Titled Tuesday Blitz January 10 Early 2023"]
[White "Borges Feria, Yasel"]
[Black "Yirik, Volkan"]
[WhiteFideId "3504921"]
[BlackFideId "6300782"]
[WhiteElo "2439"]
[BlackElo "1957"]
[Result "1-0"]
[Round "01"]
[TimeControl "180+2"]
[Date "2023.01.10"]
[WhiteClock "0:01:10"]
[BlackClock "0:02:25"]

1. d4 {[%clk 0:02:56]}  g6 {[%clk 0:03:00]} 2. e4 {[%clk 0:02:55]}  Bg7 {[%clk 0:03:01]} 3. Nc3 {[%clk 0:02:56]}  c5 {[%clk 0:03:02]} 4. dxc5 {[%clk 0:02:54]}  Nc6 {[%clk 0:03:02]} 5. Nf3 {[%clk 0:02:48]}  Nf6 {[%clk 0:03:02]} 6. Bd3 {[%clk 0:02:48]}  Qa5 {[%clk 0:03:03]} 7. O-O {[%clk 0:02:46]}  Qxc5 {[%clk 0:03:03]} 8. h3 {[%clk 0:02:42]}  O-O {[%clk 0:03:02]} 9. Be3 {[%clk 0:02:41]}  Qa5 {[%clk 0:03:02]} 10. Qd2 {[%clk 0:02:33]}  Rd8 {[%clk 0:03:01]} 11. Rad1 {[%clk 0:02:15]}  d5 {[%clk 0:02:59]} 12. exd5 {[%clk 0:01:57]}  Nxd5 {[%clk 0:02:58]} 13. Nxd5 {[%clk 0:01:58]}  Rxd5 {[%clk 0:02:58]} 14. Qxa5 {[%clk 0:01:56]}  Nxa5 {[%clk 0:02:58]} 15. c3 {[%clk 0:01:51]}  Bf5 {[%clk 0:02:52]} 16. Bxf5 {[%clk 0:01:50]}  Rxf5 {[%clk 0:02:52]} 17. Rd7 {[%clk 0:01:49]}  Rb5 {[%clk 0:02:49]} 18. Rfd1 {[%clk 0:01:40]}  h6 {[%clk 0:02:44]} 19. b3 {[%clk 0:01:35]}  Nc6 {[%clk 0:02:41]} 20. c4 {[%clk 0:01:33]}  Rf5 {[%clk 0:02:38]} 21. Rxb7 {[%clk 0:01:30]}  Ra5 {[%clk 0:02:30]} 22. a4 {[%clk 0:01:19]}  Rc8 {[%clk 0:02:26]} 23. Rdd7 {[%clk 0:01:14]}  g5 {[%clk 0:02:25]} 24. Bxa7 {[%clk 0:01:10]} 1-0


[Site "https://www.chess.com"]

[Event "Titled Tuesday Blitz January 10 Early 2023"]
[White "Albertini, Luca"]
[Black "Aradhya, Garg"]
[WhiteFideId "847038"]
[BlackFideId "25006746"]
[WhiteElo "2084"]
[BlackElo "2284"]
[Result "0-1"]
[Round "01"]
[TimeControl "180+2"]
[Date "2023.01.10"]
[WhiteClock "0:02:00"]
[BlackClock "0:02:38"]

1. e4 {[%clk 0:02:58]}  e5 {[%clk 0:02:58]} 2. Nf3 {[%clk 0:02:57]}  Nc6 {[%clk 0:02:58]} 3. Bc4 {[%clk 0:02:58]}  Nf6 {[%clk 0:02:57]} 4. d3 {[%clk 0:02:58]}  Bc5 {[%clk 0:02:56]} 5. O-O {[%clk 0:02:57]}  h6 {[%clk 0:02:56]} 6. c3 {[%clk 0:02:56]}  d6 {[%clk 0:02:56]} 7. d4 {[%clk 0:02:55]}  Bb6 {[%clk 0:02:55]} 8. Bb5 {[%clk 0:02:34]}  O-O {[%clk 0:02:53]} 9. Bxc6 {[%clk 0:02:32]}  bxc6 {[%clk 0:02:54]} 10. dxe5 {[%clk 0:02:32]}  Nxe4 {[%clk 0:02:53]} 11. Qa4 {[%clk 0:02:23]}  Nc5 {[%clk 0:02:46]} 12. Qc2 {[%clk 0:02:07]}  dxe5 {[%clk 0:02:38]} 13. Nxe5 {[%clk 0:02:04]}  Qf6 {[%clk 0:02:38]} 14. Ng4 {[%clk 0:02:00]}  Bxg4 {[%clk 0:02:38]} 0-1


[Site "https://www.chess.com"]

[Event "Titled Tuesday Blitz January 10 Early 2023"]
[White "Forgacs, Attila Jr."]
[Black "Avila Pavas, Santiago"]
[WhiteFideId "773654"]
[BlackFideId "4437128"]
[WhiteElo "2264"]
[BlackElo "2522"]
[Result "0-1"]
[Round "01"]
[TimeControl "180+2"]
[Date "2023.01.10"]
[WhiteClock "0:00:04"]
[BlackClock "0:00:19"]

1. e4 {[%clk 0:03:00]}  Nf6 {[%clk 0:02:56]} 2. d3 {[%clk 0:03:00]}  e5 {[%clk 0:02:56]} 3. Nf3 {[%clk 0:02:59]}  Nc6 {[%clk 0:02:56]} 4. Nbd2 {[%clk 0:02:59]}  Bc5 {[%clk 0:02:57]} 5. g3 {[%clk 0:02:59]}  O-O {[%clk 0:02:57]} 6. Bg2 {[%clk 0:02:59]}  d5 {[%clk 0:02:57]} 7. exd5 {[%clk 0:02:57]}  Nxd5 {[%clk 0:02:56]} 8. O-O {[%clk 0:02:54]}  f6 {[%clk 0:02:53]} 9. Nb3 {[%clk 0:02:42]}  Be7 {[%clk 0:02:53]} 10. Re1 {[%clk 0:02:36]}  Bg4 {[%clk 0:02:50]} 11. h3 {[%clk 0:02:34]}  Bh5 {[%clk 0:02:50]} 12. c3 {[%clk 0:02:27]}  Qd7 {[%clk 0:02:48]} 13. d4 {[%clk 0:02:22]}  Rad8 {[%clk 0:02:13]} 14. dxe5 {[%clk 0:02:14]}  fxe5 {[%clk 0:02:08]} 15. g4 {[%clk 0:02:08]}  Bg6 {[%clk 0:01:46]} 16. Nxe5 {[%clk 0:02:00]}  Nxe5 {[%clk 0:01:47]} 17. Rxe5 {[%clk 0:02:00]}  c6 {[%clk 0:01:47]} 18. Be3 {[%clk 0:00:55]}  Bd6 {[%clk 0:01:45]} 19. Bxd5+ {[%clk 0:00:50]}  cxd5 {[%clk 0:01:45]} 20. Rxd5 {[%clk 0:00:44]}  Bh2+ {[%clk 0:01:33]} 21. Kxh2 {[%clk 0:00:44]}  Qxd5 {[%clk 0:01:34]} 22. Qxd5+ {[%clk 0:00:44]}  Rxd5 {[%clk 0:01:35]} 23. Nd4 {[%clk 0:00:42]}  b6 {[%clk 0:01:29]} 24. Kg3 {[%clk 0:00:39]}  Re8 {[%clk 0:01:21]} 25. Re1 {[%clk 0:00:33]}  Bd3 {[%clk 0:01:19]} 26. Bd2 {[%clk 0:00:31]}  Rxe1 {[%clk 0:01:00]} 27. Bxe1 {[%clk 0:00:32]}  Kf7 {[%clk 0:01:00]} 28. Bd2 {[%clk 0:00:32]}  h6 {[%clk 0:01:00]} 29. Bf4 {[%clk 0:00:26]}  Bb1 {[%clk 0:01:00]} 30. a3 {[%clk 0:00:26]}  Bh7 {[%clk 0:01:00]} 31. Bb8 {[%clk 0:00:25]}  Rd7 {[%clk 0:00:59]} 32. f4 {[%clk 0:00:25]}  a6 {[%clk 0:00:46]} 33. Be5 {[%clk 0:00:25]}  Rd5 {[%clk 0:00:46]} 34. Kf3 {[%clk 0:00:25]}  b5 {[%clk 0:00:46]} 35. Ke3 {[%clk 0:00:23]}  g5 {[%clk 0:00:45]} 36. Bc7 {[%clk 0:00:22]}  Rd7 {[%clk 0:00:43]} 37. Be5 {[%clk 0:00:21]}  Re7 {[%clk 0:00:43]} 38. Kf3 {[%clk 0:00:20]}  Re8 {[%clk 0:00:42]} 39. Bd6 {[%clk 0:00:20]}  Be4+ {[%clk 0:00:41]} 40. Kg3 {[%clk 0:00:19]}  Bd3 {[%clk 0:00:39]} 41. Be5 {[%clk 0:00:19]}  Kg6 {[%clk 0:00:38]} 42. f5+ {[%clk 0:00:19]}  Kf7 {[%clk 0:00:39]} 43. Ne6 {[%clk 0:00:18]}  Bc4 {[%clk 0:00:36]} 44. Bd6 {[%clk 0:00:10]}  Bxe6 {[%clk 0:00:36]} 45. fxe6+ {[%clk 0:00:11]}  Rxe6 {[%clk 0:00:37]} 46. Bb4 {[%clk 0:00:11]}  Re3+ {[%clk 0:00:33]} 47. Kg2 {[%clk 0:00:11]}  Re2+ {[%clk 0:00:34]} 48. Kg3 {[%clk 0:00:11]}  Rxb2 {[%clk 0:00:35]} 49. h4 {[%clk 0:00:10]}  Ke6 {[%clk 0:00:32]} 50. hxg5 {[%clk 0:00:11]}  hxg5 {[%clk 0:00:33]} 51. Bc5 {[%clk 0:00:09]}  Rb3 {[%clk 0:00:32]} 52. Bb4 {[%clk 0:00:09]}  Ke5 {[%clk 0:00:25]} 53. Kf3 {[%clk 0:00:08]}  a5 {[%clk 0:00:23]} 54. Bxa5 {[%clk 0:00:06]}  Rxa3 {[%clk 0:00:24]} 55. Bb4 {[%clk 0:00:07]}  Ra7 {[%clk 0:00:24]} 56. Ke3 {[%clk 0:00:06]}  Rc7 {[%clk 0:00:24]} 57. Ba5 {[%clk 0:00:05]}  Rc4 {[%clk 0:00:24]} 58. Kf3 {[%clk 0:00:06]}  Rf4+ {[%clk 0:00:24]} 59. Kg3 {[%clk 0:00:06]}  Ra4 {[%clk 0:00:24]} 60. Bc7+ {[%clk 0:00:06]}  Ke6 {[%clk 0:00:24]} 61. Bd8 {[%clk 0:00:06]}  Rc4 {[%clk 0:00:23]} 62. Ba5 {[%clk 0:00:05]}  Rf4 {[%clk 0:00:18]} 63. Bd8 {[%clk 0:00:04]}  Ra4 {[%clk 0:00:14]} 64. Bxg5 {[%clk 0:00:03]}  Ra3 {[%clk 0:00:15]} 65. Bd2 {[%clk 0:00:04]}  b4 {[%clk 0:00:16]} 66. Kf4 {[%clk 0:00:04]}  b3 {[%clk 0:00:15]} 67. Bc1 {[%clk 0:00:03]}  Ra1 {[%clk 0:00:15]} 68. Bb2 {[%clk 0:00:03]}  Ra2 {[%clk 0:00:16]} 69. Bc1 {[%clk 0:00:03]}  b2 {[%clk 0:00:17]} 70. Bxb2 {[%clk 0:00:03]}  Rxb2 {[%clk 0:00:18]} 71. c4 {[%clk 0:00:04]}  Rc2 {[%clk 0:00:18]} 72. g5 {[%clk 0:00:05]}  Rxc4+ {[%clk 0:00:18]} 73. Kg3 {[%clk 0:00:04]}  Kf5 {[%clk 0:00:19]} 0-1


[Site "https://www.chess.com"]